[Event "34th MPL National U12G Chess-ch 2022"]
[Site "Mysore"]
[Date "2022.04.14"]
[Round "11.6"]
[White "Charvi A"]
[Black "Sakthi Vaishnavi A K"]
[Result "1-0"]
[ECO "C54"]
[WhiteElo "1267"]
[BlackElo "1009"]
[Annotator "NA RC"]
[PlyCount "139"]
[EventDate "2022.04.09"]
[EventCountry "IND"]
[SourceTitle "playchess.com"]
[Source "ChessBase"]
[SourceQuality "1"]
[TimeControl "5400+30"]

1. e4 {[%emt 0:00:03]} e5 {[%emt 0:00:05]} 2. Nf3 {[%emt 0:00:16]} Nc6 {[%emt 0:00:05]} 3. Bc4 {[%emt 0:00:21]} Bc5 {[%emt 0:00:05]} 4. c3 {[%emt 0:00:12]} d6 {[%emt 0:00:19]} 5. d3 {[%emt 0:00:09]} h6 {[%emt 0:00:07]} 6. O-O {[%emt 0:01:31]} Nf6 {[%emt 0:00:04]} 7. b4 {[%emt 0:00:05]} Bb6 {[%emt 0:00:26]} 8. a4 {[%emt 0:00:18]} a6 {[%emt 0:00:15]} 9. Bb3 {[%emt 0:02:46]} O-O {[%emt 0:00:55]} 10. Nbd2 {[%emt 0:00:16]} Be6 {[%emt 0:01:41]} 11. Bc2 {[%emt 0:00:27]} d5 {[%emt 0:04:19]} 12. Bb2 {[%emt 0:05:08]} d4 {[%emt 0:08:33]} 13. b5 {[%emt 0:02:58]} dxc3 {[%emt 0:04:55]} 14. Bxc3 {[%emt 0:00:28]} Bd4 {[%emt 0:04:06]} 15. Bxd4 {[%emt 0:03:03]} Nxd4 {[%emt 0:01:13]} 16. bxa6 {[%emt 0:00:06]} Rxa6 {[%emt 0:03:29]} 17. Nxe5 {[%emt 0:00:58]} Nxc2 {[%emt 0:00:39]} 18. Qxc2 {[%emt 0:00:48]} Qd6 {[%emt 0:04:52]} 19. Nef3 {[%emt 0:00:52]} Rc6 {[%emt 0:04:53]} 20. Qd1 {[%emt 0:03:15]} Nd7 {[%emt 0:05:18]} 21. d4 {[%emt 0:00:29]} Bg4 {[%emt 0:02:05]} 22. Qb3 {[%emt 0:00:44]} Rb6 {[%emt 0:53:06]} 23. Qe3 {[%emt 0:00:34]} Bxf3 {[%emt 0:00:00]} 24. Nxf3 {[%emt 0:00:38]} Re8 {[%emt 0:00:00]} 25. Rac1 {[%emt 0:00:18]} Qg6 {[%emt 0:00:00]} 26. e5 {[%emt 0:01:40]} c6 {[%emt 0:00:00]} 27. Qc3 {[%emt 0:00:56]} Ra6 {[%emt 0:00:00]} 28. Qb4 {[%emt 0:00:10]} Nb6 {[%emt 0:00:00]} 29. a5 {[%emt 0:04:36]} Nd5 {[%emt 0:00:00]} 30. Qd2 {[%emt 0:00:27]} Rea8 {[%emt 0:00:00]} 31. Rc5 {[%emt 0:03:04]} b6 {[%emt 0:00:00]} 32. axb6 {[%emt 0:01:24]} Rxb6 {[%emt 0:00:00]} 33. h3 {[%emt 0:00:08]} Rba6 {[%emt 0:00:00]} 34. Qc2 {[%emt 0:01:22]} Qe6 {[%emt 0:00:00]} 35. Rc1 {[%emt 0:00:27]} Ra2 {[%emt 0:00:00]} 36. Qe4 {[%emt 0:02:10]} f5 {[%emt 0:00:00]} 37. Qb1 {[%emt 0:01:57]} R2a6 {[%emt 0:00:00]} 38. Qb7 {[%emt 1:04:26]} R8a7 {[%emt 0:00:00]} 39. Qb8+ {[%emt 0:00:00]} Kh7 {[%emt 0:00:00]} 40. Qd6 {[%emt 0:00:00]} Qxd6 {[%emt 0:00:00]} 41. exd6 {[%emt 0:00:00]} Nf4 {[%emt 0:00:00]} 42. R1c2 {[%emt 0:00:00]} Nd3 {[%emt 0:00:00]} 43. Rxf5 {[%emt 0:00:00]} Rd7 {[%emt 0:00:00]} 44. Ne5 {[%emt 0:00:00]} Nxe5 {[%emt 0:00:00]} 45. dxe5 {[%emt 0:00:00]} Kg6 {[%emt 0:00:00]} 46. g4 {[%emt 0:00:00]} Rb6 {[%emt 0:01:26]} 47. Re2 {[%emt 0:00:00]} c5 {[%emt 0:00:56]} 48. e6 {[%emt 0:00:00]} Rdxd6 {[%emt 0:00:33]} 49. e7 {[%emt 0:05:30]} Re6 {[%emt 0:10:35]} 50. e8=Q+ {[%emt 0:00:00]} Rxe8 {[%emt 0:00:00]} 51. Rxe8 {[%emt 0:00:00]} Rc6 {[%emt 0:00:00]} 52. Ree5 {[%emt 0:00:00]} c4 {[%emt 0:00:00]} 53. Rc5 {[%emt 0:00:00]} Rxc5 {[%emt 0:00:00]} 54. Rxc5 {[%emt 0:00:00]} Kh7 {[%emt 0:00:00]} 55. Rxc4 {[%emt 0:00:00]} g6 {[%emt 0:00:00]} 56. Rc7+ {[%emt 0:00:00]} Kg8 {[%emt 0:00:00]} 57. Kf1 {[%emt 0:00:00]} h5 {[%emt 0:00:00]} 58. gxh5 {[%emt 0:00:00]} gxh5 {[%emt 0:00:00]} 59. Ke2 {[%emt 0:00:00]} h4 {[%emt 0:00:00]} 60. Ke3 {[%emt 0:00:00]} Kf8 {[%emt 0:00:00]} 61. Ke4 {[%emt 0:00:00]} Ke8 {[%emt 0:00:00]} 62. Ke5 {[%emt 0:00:00]} Kd8 {[%emt 0:00:00]} 63. Kd6 {[%emt 0:00:00]} Ke8 {[%emt 0:00:00]} 64. Rd7 {[%emt 0:00:00]} Kf8 {[%emt 0:00:00]} 65. Re7 {[%emt 0:00:00]} Kg8 {[%emt 0:00:00]} 66. Ke6 {[%emt 0:00:00]} Kf8 {[%emt 0:00:00]} 67. Kf6 {[%emt 0:00:00]} Kg8 {[%emt 0:00:00]} 68. Re8+ {[%emt 0:00:00]} Kh7 {[%emt 0:00:00]} 69. f4 {[%emt 0:00:00]} Kh6 {[%emt 0:00:00]} 70. Rh8# {[%emt 0:00:00]} 1-0